[Event "*** Titled Tuesday Blitz"]
[Site "Chess.com"]
[Date "2018.07.03"]
[Round "1"]
[White "Art10ECHR"]
[Black "Gvalch"]
[Result "0-1"]
[WhiteElo "2299"]
[BlackElo "2618"]
[TimeControl "180+2"]
[EndTime "13:10:15 PDT"]
[Termination "Gvalch won by resignation"]

1. Nf3 {[%clk 0:03:01.9]} 1... d5 {[%clk 0:03:00.8]} 2. c4 {[%clk 0:03:02.7]}
2... d4 {[%clk 0:03:01.6]} 3. e3 {[%clk 0:03:02.3]} 3... Nc6 {[%clk 0:03:02.6]}
4. exd4 {[%clk 0:03:01.1]} 4... Nxd4 {[%clk 0:03:03.8]} 5. Nxd4 {[%clk
0:03:02.3]} 5... Qxd4 {[%clk 0:03:04]} 6. Nc3 {[%clk 0:03:03.6]} 6... c6 {[%clk
0:03:05]} 7. d3 {[%clk 0:02:58.5]} 7... Nh6 {[%clk 0:03:06.4]} 8. Be3 {[%clk
0:02:51.7]} 8... Qd8 {[%clk 0:03:07.1]} 9. Be2 {[%clk 0:02:30.7]} 9... Nf5
{[%clk 0:03:07.8]} 10. d4 {[%clk 0:02:20]} 10... g6 {[%clk 0:03:07.5]} 11. Qd2
{[%clk 0:02:14.4]} 11... Bg7 {[%clk 0:03:00.1]} 12. Rd1 {[%clk 0:02:14.9]} 12...
O-O {[%clk 0:02:59.9]} 13. O-O {[%clk 0:02:05.6]} 13... Nxe3 {[%clk 0:02:33.3]}
14. Qxe3 {[%clk 0:02:03.5]} 14... Qc7 {[%clk 0:02:31.4]} 15. Bf3 {[%clk
0:02:01.8]} 15... Bf5 {[%clk 0:02:12.1]} 16. b3 {[%clk 0:01:59.4]} 16... Rad8
{[%clk 0:02:12.2]} 17. Rfe1 {[%clk 0:01:55.9]} 17... Rfe8 {[%clk 0:02:04.2]} 18.
g3 {[%clk 0:01:48.9]} 18... Qb6 {[%clk 0:01:52.9]} 19. Ne2 {[%clk 0:01:22.9]}
19... Qa5 {[%clk 0:01:34.8]} 20. Qd2 {[%clk 0:01:19.8]} 20... Qc7 {[%clk
0:01:22.6]} 21. Qb4 {[%clk 0:01:12.4]} 21... Bh3 {[%clk 0:01:17.9]} 22. Bg2
{[%clk 0:01:08.4]} 22... Bg4 {[%clk 0:01:09]} 23. Qc5 {[%clk 0:01:00.7]} 23...
Rd6 {[%clk 0:01:07.1]} 24. Qxa7 {[%clk 0:00:55.4]} 24... Red8 {[%clk 0:01:08]}
25. d5 {[%clk 0:00:54.5]} 25... c5 {[%clk 0:01:07.1]} 26. Qa3 {[%clk 0:00:52.8]}
26... Ra6 {[%clk 0:01:06]} 27. Qc1 {[%clk 0:00:50.5]} 27... Rxa2 {[%clk
0:01:03.6]} 28. Qe3 {[%clk 0:00:37.9]} 28... Qe5 {[%clk 0:00:49.8]} 29. Qxe5
{[%clk 0:00:34.9]} 29... Bxe5 {[%clk 0:00:50.3]} 30. f3 {[%clk 0:00:34.9]} 30...
Bf5 {[%clk 0:00:26.6]} 31. Nc1 {[%clk 0:00:34.5]} 31... Rxg2+ {[%clk 0:00:27]}
32. Kxg2 {[%clk 0:00:36.3]} 32... Bd6 {[%clk 0:00:27.9]} 33. g4 {[%clk 0:00:35]}
33... Bd7 {[%clk 0:00:25.2]} 34. h4 {[%clk 0:00:36]} 34... Ra8 {[%clk
0:00:24.5]} 35. Nd3 {[%clk 0:00:36.3]} 35... Ra2+ {[%clk 0:00:24.8]} 36. Kg1
{[%clk 0:00:36]} 36... h5 {[%clk 0:00:25.5]} 37. Nf2 {[%clk 0:00:30.6]} 37...
Bg3 {[%clk 0:00:25.5]} 38. Rf1 {[%clk 0:00:29.2]} 38... Bxh4 {[%clk 0:00:26.7]}
39. gxh5 {[%clk 0:00:28.9]} 39... gxh5 {[%clk 0:00:27.7]} 40. Ra1 {[%clk
0:00:29]} 40... Rb2 {[%clk 0:00:28.1]} 41. Kg2 {[%clk 0:00:22.8]} 41... Bf5
{[%clk 0:00:24.4]} 42. Rad1 {[%clk 0:00:21.2]} 42... Rxb3 {[%clk 0:00:23.4]} 43.
Rh1 {[%clk 0:00:21.5]} 43... Bxf2 {[%clk 0:00:22.2]} 44. Kxf2 {[%clk 0:00:23.4]}
44... Rb2+ {[%clk 0:00:23.7]} 45. Kg3 {[%clk 0:00:24.3]} 45... Bg6 {[%clk
0:00:25.6]} 46. Rhe1 {[%clk 0:00:24]} 46... Kf8 {[%clk 0:00:26.6]} 47. Re3
{[%clk 0:00:23.1]} 47... Rb4 {[%clk 0:00:26.9]} 48. Rde1 {[%clk 0:00:24.2]}
48... Rxc4 {[%clk 0:00:26.4]} 49. Rxe7 {[%clk 0:00:25.7]} 49... Rd4 {[%clk
0:00:28]} 50. Rd7 {[%clk 0:00:22]} 50... Bf5 {[%clk 0:00:28.6]} 51. Rd8+ {[%clk
0:00:22.8]} 51... Kg7 {[%clk 0:00:29.6]} 52. d6 {[%clk 0:00:24.4]} 52... h4+
{[%clk 0:00:30.4]} 53. Kh2 {[%clk 0:00:23.9]} 53... Be6 {[%clk 0:00:31.6]} 54.
Re4 {[%clk 0:00:21.9]} 54... Rd2+ {[%clk 0:00:31.6]} 55. Kg1 {[%clk 0:00:23.2]}
55... b5 {[%clk 0:00:32.6]} 56. Rxh4 {[%clk 0:00:23.2]} 56... b4 {[%clk
0:00:32.9]} 57. Rh5 {[%clk 0:00:23.5]} 57... b3 {[%clk 0:00:31]} 58. Rxc5 {[%clk
0:00:22.9]} 58... b2 {[%clk 0:00:32]} 59. Rb5 {[%clk 0:00:21.4]} 59... Rd1+
{[%clk 0:00:32.8]} 60. Kf2 {[%clk 0:00:22.7]} 60... b1=Q {[%clk 0:00:34.3]} 61.
Rxb1 {[%clk 0:00:24.4]} 61... Rxb1 {[%clk 0:00:36.2]} 62. Ke2 {[%clk 0:00:26.2]}
62... Rb5 {[%clk 0:00:35.1]} 63. Ke3 {[%clk 0:00:22.2]} 63... Rd5 {[%clk
0:00:36.1]} 64. Ke4 {[%clk 0:00:23.8]} 64... Kf6 {[%clk 0:00:37]} 65. f4 {[%clk
0:00:24.4]} 65... Rd1 {[%clk 0:00:38]} 66. Ke3 {[%clk 0:00:21.5]} 66... Bg4
{[%clk 0:00:35.4]} 67. Ke4 {[%clk 0:00:20.5]} 67... Ke6 {[%clk 0:00:35.7]} 68.
Re8+ {[%clk 0:00:19.9]} 68... Kxd6 {[%clk 0:00:35.9]} 69. f5 {[%clk 0:00:20.4]}
69... Re1+ {[%clk 0:00:36.2]} 0-1

[Event "*** Titled Tuesday Blitz"]
[Site "Chess.com"]
[Date "2018.07.03"]
[Round "1"]
[White "51616516516"]
[Black "VerdeNotte"]
[Result "0-1"]
[WhiteElo "2227"]
[BlackElo "2583"]
[TimeControl "180+2"]
[EndTime "13:10:15 PDT"]
[Termination "VerdeNotte won on time"]

1. d4 {[%clk 0:03:01.1]} 1... Nf6 {[%clk 0:02:54.6]} 2. c4 {[%clk 0:03:02.1]}
2... c5 {[%clk 0:02:54.2]} 3. Nf3 {[%clk 0:03:00.5]} 3... g6 {[%clk 0:02:52.4]}
4. Nc3 {[%clk 0:02:50.2]} 4... cxd4 {[%clk 0:02:52.2]} 5. Nxd4 {[%clk
0:02:50.8]} 5... Nc6 {[%clk 0:02:52.5]} 6. g3 {[%clk 0:02:51.4]} 6... Bg7 {[%clk
0:02:53]} 7. Bg2 {[%clk 0:02:52.1]} 7... O-O {[%clk 0:02:53.7]} 8. O-O {[%clk
0:02:52.1]} 8... d6 {[%clk 0:02:54.8]} 9. Nc2 {[%clk 0:02:50.5]} 9... Be6 {[%clk
0:02:49.3]} 10. b3 {[%clk 0:02:49.9]} 10... Qd7 {[%clk 0:02:37.4]} 11. Bb2
{[%clk 0:02:46.9]} 11... Bh3 {[%clk 0:02:38.2]} 12. Ne3 {[%clk 0:02:40.9]} 12...
Rac8 {[%clk 0:02:33.8]} 13. Qd2 {[%clk 0:02:38]} 13... Rfe8 {[%clk 0:02:27.7]}
14. Ncd5 {[%clk 0:02:27.7]} 14... Bxg2 {[%clk 0:02:24.8]} 15. Kxg2 {[%clk
0:02:23.9]} 15... Nxd5 {[%clk 0:02:17.7]} 16. Nxd5 {[%clk 0:02:22.6]} 16... Qf5
{[%clk 0:02:08.6]} 17. f3 {[%clk 0:02:11.1]} 17... Bxb2 {[%clk 0:02:01.9]} 18.
Qxb2 {[%clk 0:02:08]} 18... Qe5 {[%clk 0:02:03.4]} 19. Qxe5 {[%clk 0:02:03.4]}
19... Nxe5 {[%clk 0:02:02.3]} 20. f4 {[%clk 0:01:55.9]} 20... Nc6 {[%clk
0:01:59.3]} 21. Rfd1 {[%clk 0:01:47.1]} 21... Kg7 {[%clk 0:01:59.8]} 22. e3
{[%clk 0:01:18]} 22... Rcd8 {[%clk 0:01:48.1]} 23. Kf3 {[%clk 0:01:15]} 23...
Rd7 {[%clk 0:01:47.9]} 24. Rac1 {[%clk 0:01:10.2]} 24... e6 {[%clk 0:01:48]} 25.
Nc3 {[%clk 0:01:10]} 25... Red8 {[%clk 0:01:49.2]} 26. e4 {[%clk 0:01:08]} 26...
f5 {[%clk 0:01:43.8]} 27. exf5 {[%clk 0:01:01.3]} 27... gxf5 {[%clk 0:01:43.5]}
28. Nb5 {[%clk 0:00:57]} 28... a6 {[%clk 0:01:43.7]} 29. Nd4 {[%clk 0:00:55.7]}
29... Nxd4+ {[%clk 0:01:39.1]} 30. Rxd4 {[%clk 0:00:57.6]} 30... Kf6 {[%clk
0:01:38.7]} 31. Rcd1 {[%clk 0:00:56.5]} 31... Ke7 {[%clk 0:01:38.1]} 32. R4d3
{[%clk 0:00:47.6]} 32... Rc8 {[%clk 0:01:34.5]} 33. Re1 {[%clk 0:00:47.5]} 33...
Kf6 {[%clk 0:01:35.3]} 34. Rde3 {[%clk 0:00:46.5]} 34... Re7 {[%clk 0:01:36.5]}
35. Rd1 {[%clk 0:00:47.6]} 35... Rc6 {[%clk 0:01:37]} 36. Red3 {[%clk
0:00:47.6]} 36... Rd7 {[%clk 0:01:37.9]} 37. h3 {[%clk 0:00:41.9]} 37... b5
{[%clk 0:01:31.2]} 38. cxb5 {[%clk 0:00:39.6]} 38... axb5 {[%clk 0:01:33.1]} 39.
g4 {[%clk 0:00:29.6]} 39... b4 {[%clk 0:01:34]} 40. g5+ {[%clk 0:00:30.8]} 40...
Ke7 {[%clk 0:01:33.8]} 41. Re1 {[%clk 0:00:31.7]} 41... Rdc7 {[%clk 0:01:33.3]}
42. Re2 {[%clk 0:00:26.4]} 42... Rc2 {[%clk 0:01:32]} 43. Rde3 {[%clk
0:00:24.8]} 43... Rxe2 {[%clk 0:01:32.5]} 44. Rxe2 {[%clk 0:00:24.5]} 44... Rc3+
{[%clk 0:01:32]} 45. Kg2 {[%clk 0:00:24.9]} 45... Rd3 {[%clk 0:01:27.7]} 46. Rc2
{[%clk 0:00:24.5]} 46... Kd7 {[%clk 0:01:25.7]} 47. h4 {[%clk 0:00:24.7]} 47...
Rd4 {[%clk 0:01:26.3]} 48. Kg3 {[%clk 0:00:24.1]} 48... Rd3+ {[%clk 0:01:27.6]}
49. Kg2 {[%clk 0:00:24.9]} 49... Rc3 {[%clk 0:01:28.9]} 50. Rd2 {[%clk
0:00:22.4]} 50... Ke7 {[%clk 0:01:29.9]} 51. h5 {[%clk 0:00:22]} 51... d5 {[%clk
0:01:30.8]} 52. Re2 {[%clk 0:00:21.4]} 52... Kf7 {[%clk 0:01:25.9]} 53. Kf2
{[%clk 0:00:17.7]} 53... Rh3 {[%clk 0:01:26.3]} 54. g6+ {[%clk 0:00:16.3]} 54...
hxg6 {[%clk 0:01:26.8]} 55. hxg6+ {[%clk 0:00:17.6]} 55... Kf6 {[%clk
0:01:28.1]} 56. g7 {[%clk 0:00:17.3]} 56... Kxg7 {[%clk 0:01:23.7]} 57. Rxe6
{[%clk 0:00:17.3]} 57... Rh2+ {[%clk 0:01:24.7]} 58. Kg3 {[%clk 0:00:18.3]}
58... Rxa2 {[%clk 0:01:26.6]} 59. Rb6 {[%clk 0:00:18.8]} 59... d4 {[%clk
0:01:26]} 60. Rxb4 {[%clk 0:00:19.5]} 60... d3 {[%clk 0:01:27.5]} 61. Rd4 {[%clk
0:00:18.7]} 61... d2 {[%clk 0:01:28.4]} 62. Rd6 {[%clk 0:00:16.8]} 62... Rb2
{[%clk 0:01:27]} 63. Kh4 {[%clk 0:00:15.8]} 63... Kf7 {[%clk 0:01:25.1]} 64. Kg5
{[%clk 0:00:16.2]} 64... Ke7 {[%clk 0:01:26.5]} 65. Rd3 {[%clk 0:00:14.4]} 65...
Ke6 {[%clk 0:01:27.2]} 66. Rd8 {[%clk 0:00:14.9]} 66... Rxb3 {[%clk 0:01:26]}
67. Rxd2 {[%clk 0:00:15.2]} 67... Rg3+ {[%clk 0:01:27.6]} 68. Kh4 {[%clk
0:00:12.4]} 68... Rg4+ {[%clk 0:01:27.2]} 69. Kh3 {[%clk 0:00:13.7]} 69... Rxf4
{[%clk 0:01:28.2]} 70. Kg3 {[%clk 0:00:14.9]} 70... Ra4 {[%clk 0:01:29.2]} 71.
Kf2 {[%clk 0:00:13.6]} 71... Ra3 {[%clk 0:01:29.4]} 72. Rb2 {[%clk 0:00:14]}
72... Ke5 {[%clk 0:01:30.4]} 73. Kf1 {[%clk 0:00:08.9]} 73... Kf4 {[%clk
0:01:30.7]} 74. Rb1 {[%clk 0:00:08.4]} 74... Kg3 {[%clk 0:01:30.2]} 75. Rc1
{[%clk 0:00:08.4]} 75... f4 {[%clk 0:01:31.2]} 76. Kg1 {[%clk 0:00:05.8]} 76...
f3 {[%clk 0:01:30.7]} 77. Kf1 {[%clk 0:00:06.5]} 77... Ra2 {[%clk 0:01:31.9]}
78. Rb1 {[%clk 0:00:07.6]} 78... Rh2 {[%clk 0:01:32.4]} 79. Kg1 {[%clk
0:00:03.3]} 79... f2+ {[%clk 0:01:33.5]} 0-1

[Event "*** Titled Tuesday Blitz"]
[Site "Chess.com"]
[Date "2018.07.03"]
[Round "1"]
[White "Swarnapuri"]
[Black "colegiodemadrid"]
[Result "1-0"]
[WhiteElo "2562"]
[BlackElo "2213"]
[TimeControl "180+2"]
[EndTime "13:10:19 PDT"]
[Termination "Swarnapuri won by resignation"]

1. d4 {[%clk 0:03:01.3]} 1... d5 {[%clk 0:02:59.1]} 2. Bf4 {[%clk 0:03:02.2]}
2... e6 {[%clk 0:02:53.8]} 3. e3 {[%clk 0:03:03.3]} 3... Bd6 {[%clk 0:02:55.2]}
4. Bg3 {[%clk 0:03:03.5]} 4... Nf6 {[%clk 0:02:55]} 5. Nd2 {[%clk 0:03:04]} 5...
b6 {[%clk 0:02:56.3]} 6. Bd3 {[%clk 0:03:03.9]} 6... Ba6 {[%clk 0:02:55.8]} 7.
Bxa6 {[%clk 0:03:02.1]} 7... Nxa6 {[%clk 0:02:56.4]} 8. Ngf3 {[%clk 0:03:02.7]}
8... O-O {[%clk 0:02:57.2]} 9. Ne5 {[%clk 0:03:02.3]} 9... Nb8 {[%clk
0:02:55.7]} 10. f4 {[%clk 0:02:58.8]} 10... c5 {[%clk 0:02:55.5]} 11. c3 {[%clk
0:02:59.1]} 11... Qc7 {[%clk 0:02:53.6]} 12. O-O {[%clk 0:02:58.2]} 12... Nc6
{[%clk 0:02:53.1]} 13. Qf3 {[%clk 0:02:45.9]} 13... Nd7 {[%clk 0:02:53.7]} 14.
Bh4 {[%clk 0:02:36]} 14... f6 {[%clk 0:02:44.1]} 15. Nxc6 {[%clk 0:02:36.9]}
15... Qxc6 {[%clk 0:02:44.9]} 16. f5 {[%clk 0:02:38.8]} 16... e5 {[%clk
0:02:43.5]} 17. c4 {[%clk 0:02:27.8]} 17... cxd4 {[%clk 0:02:41.8]} 18. exd4
{[%clk 0:02:26.3]} 18... exd4 {[%clk 0:02:33.4]} 19. cxd5 {[%clk 0:02:25.9]}
19... Qc2 {[%clk 0:02:33.5]} 20. Ne4 {[%clk 0:02:03.5]} 20... Be5 {[%clk
0:02:34.7]} 21. Rf2 {[%clk 0:01:55.6]} 21... Qc4 {[%clk 0:02:22.7]} 22. Bg3
{[%clk 0:01:36.1]} 22... Bxg3 {[%clk 0:02:05.9]} 23. Nxg3 {[%clk 0:01:31]} 23...
Ne5 {[%clk 0:02:06.6]} 24. Qe4 {[%clk 0:01:31.3]} 24... Rad8 {[%clk 0:02:05.8]}
25. Nh5 {[%clk 0:01:25.2]} 25... Qxd5 {[%clk 0:02:05.4]} 26. Qf4 {[%clk
0:01:17.3]} 26... Rf7 {[%clk 0:02:00.4]} 27. Qg3 {[%clk 0:01:16.7]} 27... d3
{[%clk 0:01:58.3]} 28. Nf4 {[%clk 0:01:17.3]} 28... Qe4 {[%clk 0:01:52.5]} 29.
Ne6 {[%clk 0:01:16.8]} 29... Rd4 {[%clk 0:01:43.5]} 30. Rf4 {[%clk 0:01:09]}
30... Rfd7 {[%clk 0:01:04.4]} 31. Rxe4 {[%clk 0:00:46.7]} 31... Rxe4 {[%clk
0:01:05.7]} 32. Rd1 {[%clk 0:00:44.4]} 32... Rg4 {[%clk 0:00:57.8]} 33. Qe3
{[%clk 0:00:40.8]} 33... Rb4 {[%clk 0:00:49.5]} 34. b3 {[%clk 0:00:37.9]} 34...
g6 {[%clk 0:00:47.7]} 35. fxg6 {[%clk 0:00:36.4]} 35... hxg6 {[%clk 0:00:49]}
36. Nf4 {[%clk 0:00:37.2]} 36... Rbd4 {[%clk 0:00:45.4]} 37. Ne6 {[%clk
0:00:38.2]} 37... R4d6 {[%clk 0:00:44.2]} 38. Nf4 {[%clk 0:00:36.7]} 38... Kg7
{[%clk 0:00:44.6]} 39. Qg3 {[%clk 0:00:36.7]} 39... d2 {[%clk 0:00:42.9]} 40. h4
{[%clk 0:00:34.2]} 40... Rc6 {[%clk 0:00:41.9]} 41. Kh2 {[%clk 0:00:30.9]} 41...
Rc1 {[%clk 0:00:40.8]} 42. Nxg6 {[%clk 0:00:23.5]} 42... Nxg6 {[%clk 0:00:20.7]}
43. Qg4 {[%clk 0:00:24.3]} 43... Rxd1 {[%clk 0:00:22.1]} 44. Qxd7+ {[%clk
0:00:25.1]} 44... Kh6 {[%clk 0:00:21.4]} 45. g3 {[%clk 0:00:25]} 45... Ne5
{[%clk 0:00:19.9]} 46. Qd8 {[%clk 0:00:25.9]} 46... Re1 {[%clk 0:00:20.7]} 47.
Qxf6+ {[%clk 0:00:26.4]} 47... Ng6 {[%clk 0:00:22]} 48. Qg5+ {[%clk 0:00:27.2]}
48... Kg7 {[%clk 0:00:22.7]} 49. Qxd2 {[%clk 0:00:29.1]} 49... Re4 {[%clk
0:00:23.8]} 50. Qd3 {[%clk 0:00:29.6]} 50... Re7 {[%clk 0:00:24.2]} 51. Qd4+
{[%clk 0:00:30.5]} 51... Ne5 {[%clk 0:00:26.1]} 52. Kh3 {[%clk 0:00:31.2]} 52...
Kf7 {[%clk 0:00:27.8]} 53. Qf4+ {[%clk 0:00:32.1]} 53... Ke6 {[%clk 0:00:29.4]}
54. a4 {[%clk 0:00:34]} 54... Rf7 {[%clk 0:00:30.5]} 55. Qh6+ {[%clk 0:00:35.1]}
55... Rf6 {[%clk 0:00:31.3]} 56. Qc1 {[%clk 0:00:36.6]} 56... Nf3 {[%clk
0:00:31.3]} 57. Qc8+ {[%clk 0:00:37.8]} 57... Ke5 {[%clk 0:00:32.1]} 58. Qc7+
{[%clk 0:00:38.5]} 58... Ke4 {[%clk 0:00:33.6]} 59. Qxa7 {[%clk 0:00:39.9]}
59... Ne5 {[%clk 0:00:33.8]} 60. Qb7+ {[%clk 0:00:40.5]} 60... Ke3 {[%clk
0:00:34.4]} 61. Qe7 {[%clk 0:00:41.1]} 61... Rf5 {[%clk 0:00:35.1]} 62. Qe6
{[%clk 0:00:40.6]} 62... Ke4 {[%clk 0:00:36.2]} 63. Qxb6 {[%clk 0:00:41.5]}
63... Rf1 {[%clk 0:00:35.7]} 64. Qb5 {[%clk 0:00:42.3]} 64... Nd3 {[%clk
0:00:35.9]} 65. Qc4+ {[%clk 0:00:42.8]} 65... Ke3 {[%clk 0:00:36.8]} 66. Qe6+
{[%clk 0:00:44.3]} 66... Kf3 {[%clk 0:00:37.9]} 67. Qf5+ {[%clk 0:00:45.2]}
67... Ke2 {[%clk 0:00:38.9]} 68. Qe4+ {[%clk 0:00:46.1]} 68... Kd2 {[%clk
0:00:40.2]} 69. Qg2+ {[%clk 0:00:46.5]} 69... Nf2+ {[%clk 0:00:41]} 70. Kh2
{[%clk 0:00:45.6]} 70... Ke3 {[%clk 0:00:39.7]} 71. Qxf1 {[%clk 0:00:45.7]} 1-0

[Event "*** Titled Tuesday Blitz"]
[Site "Chess.com"]
[Date "2018.07.03"]
[Round "1"]
[White "Zq1"]
[Black "Morshynska"]
[Result "1-0"]
[WhiteElo "2518"]
[BlackElo "2159"]
[TimeControl "180+2"]
[EndTime "13:10:26 PDT"]
[Termination "Zq1 won by resignation"]

1. d4 {[%clk 0:02:58.5]} 1... Nf6 {[%clk 0:02:59.9]} 2. c4 {[%clk 0:02:59.1]}
2... e6 {[%clk 0:03:00.6]} 3. Nc3 {[%clk 0:02:59.4]} 3... Bb4 {[%clk 0:03:00.8]}
4. e3 {[%clk 0:03:00.5]} 4... b6 {[%clk 0:03:01.5]} 5. Bd3 {[%clk 0:03:00.9]}
5... Bb7 {[%clk 0:03:01.3]} 6. f3 {[%clk 0:03:02.3]} 6... d5 {[%clk 0:02:48.8]}
7. Ne2 {[%clk 0:03:02]} 7... O-O {[%clk 0:02:45.9]} 8. O-O {[%clk 0:03:02.3]}
8... c5 {[%clk 0:02:39.3]} 9. a3 {[%clk 0:03:01.6]} 9... Bxc3 {[%clk 0:02:38.9]}
10. bxc3 {[%clk 0:03:00.2]} 10... Nc6 {[%clk 0:02:27.4]} 11. cxd5 {[%clk
0:03:00.2]} 11... exd5 {[%clk 0:02:27.4]} 12. Bb2 {[%clk 0:02:54.2]} 12... Re8
{[%clk 0:02:27.1]} 13. Qd2 {[%clk 0:02:54.1]} 13... Qe7 {[%clk 0:02:24.4]} 14.
Kf2 {[%clk 0:02:54.3]} 14... Na5 {[%clk 0:02:19.8]} 15. Nc1 {[%clk 0:02:50.8]}
15... Rac8 {[%clk 0:02:17.9]} 16. a4 {[%clk 0:02:44.6]} 16... h5 {[%clk
0:02:02.3]} 17. Re1 {[%clk 0:02:41.5]} 17... h4 {[%clk 0:02:00.3]} 18. Ba3
{[%clk 0:02:35.9]} 18... Qc7 {[%clk 0:02:00]} 19. Kg1 {[%clk 0:02:32.3]} 19...
cxd4 {[%clk 0:01:48.4]} 20. cxd4 {[%clk 0:02:32.1]} 20... Nc4 {[%clk 0:01:42.9]}
21. Bxc4 {[%clk 0:02:28.2]} 21... Qxc4 {[%clk 0:01:44.8]} 22. Nd3 {[%clk
0:02:21]} 22... Qc3 {[%clk 0:01:29.8]} 23. Qxc3 {[%clk 0:02:19.9]} 23... Rxc3
{[%clk 0:01:31.7]} 24. Ne5 {[%clk 0:02:19.6]} 24... Rec8 {[%clk 0:01:26.3]} 25.
a5 {[%clk 0:02:18]} 25... Rc2 {[%clk 0:00:54.6]} 26. axb6 {[%clk 0:02:14.4]}
26... axb6 {[%clk 0:00:56.5]} 27. Be7 {[%clk 0:02:11.1]} 27... Rb2 {[%clk
0:00:48.9]} 28. Rec1 {[%clk 0:02:09]} 28... Rcc2 {[%clk 0:00:39.3]} 29. Rxc2
{[%clk 0:02:09.3]} 29... Rxc2 {[%clk 0:00:41.2]} 30. Rb1 {[%clk 0:02:01.5]}
30... Ba6 {[%clk 0:00:36.8]} 31. Bxf6 {[%clk 0:01:57.2]} 31... gxf6 {[%clk
0:00:38.7]} 32. Nd7 {[%clk 0:01:57.8]} 32... Re2 {[%clk 0:00:25.7]} 33. Nxf6+
{[%clk 0:01:56.2]} 33... Kg7 {[%clk 0:00:26.2]} 34. Nxd5 {[%clk 0:01:56.3]}
34... Bd3 {[%clk 0:00:23.1]} 35. Rc1 {[%clk 0:01:50.2]} 35... b5 {[%clk
0:00:19.9]} 36. h3 {[%clk 0:01:50.2]} 36... Bc4 {[%clk 0:00:19.6]} 37. Nb6
{[%clk 0:01:40.1]} 37... Bd3 {[%clk 0:00:19.3]} 38. Rc3 {[%clk 0:01:32.6]} 38...
Re1+ {[%clk 0:00:17.4]} 39. Kh2 {[%clk 0:01:33]} 39... Bf1 {[%clk 0:00:18]} 40.
Nd5 {[%clk 0:01:26.5]} 40... b4 {[%clk 0:00:14.9]} 41. Rc2 {[%clk 0:01:23.3]}
41... b3 {[%clk 0:00:15.6]} 42. Rb2 {[%clk 0:01:23.4]} 42... Bc4 {[%clk
0:00:07.7]} 43. Nb6 {[%clk 0:01:21.9]} 43... Bf1 {[%clk 0:00:07.4]} 44. e4
{[%clk 0:01:21.8]} 44... Rc1 {[%clk 0:00:07.3]} 45. Na4 {[%clk 0:01:12.5]} 45...
Rc2 {[%clk 0:00:06.3]} 46. Kg1 {[%clk 0:01:12]} 46... Bb5 {[%clk 0:00:05.6]} 47.
Rxb3 {[%clk 0:01:08.5]} 47... Bxa4 {[%clk 0:00:05.2]} 48. Rb4 {[%clk 0:01:07.5]}
48... Ra2 {[%clk 0:00:05]} 49. d5 {[%clk 0:01:07.5]} 49... Bd1 {[%clk
0:00:02.4]} 50. Rd4 {[%clk 0:01:07.2]} 50... Ba4 {[%clk 0:00:02.5]} 51. Rb4
{[%clk 0:01:05.7]} 51... Bd7 {[%clk 0:00:02.8]} 52. e5 {[%clk 0:01:06.7]} 52...
Rd2 {[%clk 0:00:02.9]} 53. d6 {[%clk 0:01:06.7]} 53... f6 {[%clk 0:00:03.2]} 54.
exf6+ {[%clk 0:01:06.9]} 54... Kxf6 {[%clk 0:00:05.1]} 55. Rxh4 {[%clk
0:01:07.5]} 55... Rxd6 {[%clk 0:00:05.2]} 56. Rf4+ {[%clk 0:01:07.8]} 56... Ke7
{[%clk 0:00:06]} 57. Re4+ {[%clk 0:01:08.7]} 57... Re6 {[%clk 0:00:06.8]} 58.
Rd4 {[%clk 0:01:07.6]} 58... Bc6 {[%clk 0:00:07.7]} 59. h4 {[%clk 0:01:07.8]}
59... Rf6 {[%clk 0:00:08.6]} 60. Rd3 {[%clk 0:01:04.2]} 60... Kf7 {[%clk
0:00:09.2]} 61. Kh2 {[%clk 0:01:04.4]} 61... Kg7 {[%clk 0:00:09.7]} 62. Kg3
{[%clk 0:01:05.3]} 62... Rg6+ {[%clk 0:00:10.3]} 63. Kf2 {[%clk 0:01:06]} 63...
Rf6 {[%clk 0:00:11]} 64. g4 {[%clk 0:01:06.4]} 64... Be8 {[%clk 0:00:10.8]} 65.
Kg3 {[%clk 0:01:07.2]} 65... Rf7 {[%clk 0:00:11.4]} 66. h5 {[%clk 0:01:07.6]}
66... Bc6 {[%clk 0:00:12.1]} 67. f4 {[%clk 0:01:07.1]} 67... Rb7 {[%clk
0:00:11.5]} 68. Rd6 {[%clk 0:01:07]} 68... Be8 {[%clk 0:00:11.8]} 69. Kh4 {[%clk
0:01:05.8]} 69... Rb2 {[%clk 0:00:10.9]} 70. Kg5 {[%clk 0:01:06.2]} 70... Rb5+
{[%clk 0:00:11.2]} 71. f5 {[%clk 0:01:06.4]} 71... Ra5 {[%clk 0:00:10.2]} 72.
Rb6 {[%clk 0:01:06.2]} 72... Bf7 {[%clk 0:00:10.6]} 73. Rb7 {[%clk 0:01:07]}
73... Ra6 {[%clk 0:00:10.3]} 74. h6+ {[%clk 0:01:06.3]} 74... Kf8 {[%clk
0:00:09.9]} 75. h7 {[%clk 0:01:06.1]} 75... Kg7 {[%clk 0:00:09.7]} 76. Rxf7+
{[%clk 0:01:05]} 1-0